[Event "Athens of East GM-Open 2019"]
[Site "Madurai"]
[Date "2019.08.17"]
[Round "9.7"]
[White "Khusenkhojaev, Muhammad"]
[Black "Hari Madhavan N B"]
[Result "1/2-1/2"]
[ECO "D11"]
[WhiteElo "2441"]
[BlackElo "2231"]
[Annotator "NA"]
[PlyCount "118"]
[EventDate "2019.08.11"]
[EventType "swiss"]
[EventCountry "IND"]
[SourceTitle "playchess.com"]
[Source "ChessBase"]
[SourceQuality "1"]
[TimeControl "5400+30"]

1. d4 {[%emt 0:02:14]} d5 {[%emt 0:00:00]} 2. c4 {[%emt 0:00:10]} c6 {[%emt 0:00:00]} 3. Nf3 {[%emt 0:00:05]} Nf6 {[%emt 0:00:00]} 4. Qc2 {[%emt 0:00:05]} dxc4 {[%emt 0:00:19]} 5. e4 {[%emt 0:00:08]} (5. Qxc4 Bg4 6. Nbd2 Nbd7 7. g3 e6 8. Bg2 Bd6 9. Qb3 Nb6 10. O-O O-O 11. Re1 a5 12. e4 a4 13. Qc3 Re8 14. a3 {1-0 (64) Yu,Y (2764)-Kovalenko,I (2657) St Petersburg 2018}) 5... b5 {[%emt 0:00:34]} 6. b3 {[%emt 0:00:07] D11: Slav Defence: 3 Nf3 sidelines and 3...Nf6 4 e3 Bg4} cxb3 {[%emt 0:01:24]} 7. axb3 {[%emt 0:00:07]} e6 {[%emt 0:00:36]} 8. Bd2 {[%emt 0:00:08]} a5 {[%emt 0:03:33]} 9. Bd3 {[%emt 0:00:11]} Be7 {[%emt 0:01:05]} 10. O-O {[%emt 0:00:38]} h6 {[%emt 0:00:06]} 11. Rc1 {[%emt 0:03:20]} Bb7 $146 {[%emt 0:01:53]} ({Predecessor:} 11... O-O 12. Nc3 {1-0 (32) Larson,M (2220)-Ayala Pena,E (2201) Brownsville 2016}) 12. Nc3 {[%emt 0:00:07]} O-O {[%emt 0:00:21]} 13. e5 {[%emt 0:00:10]} Nfd7 {[%emt 0:08:57]} 14. Ne4 {[%emt 0:00:50]} b4 {[%emt 0:00:49]} 15. Be3 {[%emt 0:10:41]} c5 {[%emt 0:06:31]} 16. dxc5 {[%emt 0:00:49]} Bd5 {[%emt 0:00:09]} 17. Bc4 {[%emt 0:17:44]} Nc6 {[%emt 0:01:16]} 18. Bf4 {[%emt 0:00:12]} (18. Bxd5 $1 $11 exd5 19. Nd6) 18... f6 {[%emt 0:11:41]} (18... g5 $15 19. Be3 Bxc4 20. Qxc4 Ndxe5 21. Nxe5 Nxe5) 19. Bxd5 {[%emt 0:03:24]} exd5 {[%emt 0:00:12]} 20. exf6 {[%emt 0:00:19]} Nxf6 {[%emt 0:00:32]} 21. Nd6 {[%emt 0:04:04]} Ne4 $1 {[%emt 0:05:46]} 22. Qd3 {[%emt 0:02:37]} Rxf4 {[%emt 0:01:20]} 23. Qxd5+ {[%emt 0:00:05] Double Attack} Kh8 {[%emt 0:00:30]} 24. Qxc6 {[%emt 0:00:20]} Nxd6 {[%emt 0:00:27]} 25. cxd6 {[%emt 0:00:50]} Bxd6 {[%emt 0:00:30]} 26. Rd1 {[%emt 0:06:02]} Rf6 {[%emt 0:02:09]} 27. Qd5 {[%emt 0:00:40]} Qg8 {[%emt 0:04:08]} 28. Qd3 {[%emt 0:04:54]} Rd8 {[%emt 0:02:51]} 29. Kf1 {[%emt 0:00:12]} Be7 {[%emt 0:06:07]} 30. Qe3 {[%emt 0:00:09]} Qe6 {[%emt 0:01:25]} 31. Rxd8+ {[%emt 0:06:42]} Bxd8 {[%emt 0:00:17]} 32. Qd3 {[%emt 0:00:37]} Qa6 {[%emt 0:00:50]} 33. Qxa6 {[%emt 0:01:11]} Rxa6 {[%emt 0:00:11]} 34. Nd2 {[%emt 0:00:57]} Rd6 {[%emt 0:00:30]} 35. Ne4 {[%emt 0:01:54]} Rc6 {[%emt 0:02:26]} 36. Rd1 {[%emt 0:08:38]} Bc7 {[%emt 0:02:43]} 37. g3 {[%emt 0:01:56]} Rc2 {[%emt 0:01:07]} 38. Rd3 {[%emt 0:01:20]} Ra2 {[%emt 0:02:27]} 39. Rd7 {[%emt 0:03:22]} Be5 {[%emt 0:01:22]} 40. Rd5 {[%emt 0:00:10]} Bc3 {[%emt 0:01:10]} 41. Nc5 {[%emt 0:00:37]} Ra3 {[%emt 0:02:38]} 42. Ke2 {[%emt 0:02:15]} a4 $11 {[%emt 0:02:04]} 43. bxa4 {[%emt 0:05:40]} b3 {[%emt 0:00:11]} 44. Ne4 {[%emt 0:00:24]} Bb4 {[%emt 0:05:27]} 45. Rd4 {[%emt 0:00:35]} Ba5 {[%emt 0:00:09]} 46. Rd5 {[%emt 0:03:44]} Rxa4 {[%emt 0:00:28]} 47. Kd3 {[%emt 0:00:10]} Bb6 {[%emt 0:02:49]} 48. Rb5 {[%emt 0:07:59]} Rd4+ {[%emt 0:00:17]} 49. Kc3 {[%emt 0:00:04]} Rxe4 {[%emt 0:00:08]} 50. Rxb6 {[%emt 0:00:08]} Re2 {[%emt 0:00:09]} 51. Rxb3 {[%emt 0:01:33]} Rxf2 {[%emt 0:00:09]} 52. Rb2 {[%emt 0:00:03]} Rf3+ {[%emt 0:01:13]} 53. Kd4 {[%emt 0:00:07]} Kh7 {[%emt 0:00:05]} 54. Ke4 {[%emt 0:00:04]} Ra3 {[%emt 0:00:05]} 55. Kf4 {[%emt 0:00:20]} Ra4+ {[%emt 0:00:05]} 56. Kf3 {[%emt 0:00:09]} Ra3+ {[%emt 0:00:03]} 57. Kf4 {[%emt 0:00:10]} Ra4+ {[%emt 0:00:04]} 58. Kf3 {[%emt 0:00:04]} Ra3+ {[%emt 0:00:03]} 59. Kf4 {[%emt 0:00:05]} Ra4+ {[%emt 0:00:07]} 1/2-1/2

[Event "Athens of East GM-Open 2019"]
[Site "Madurai"]
[Date "2019.08.17"]
[Round "9.8"]
[White "Prasannaa.s"]
[Black "Laxman, R.R."]
[Result "0-1"]
[ECO "A00"]
[WhiteElo "2233"]
[BlackElo "2429"]
[Annotator "ChessBase"]
[PlyCount "83"]
[EventDate "2019.08.11"]
[EventType "swiss"]
[EventCountry "IND"]
[SourceTitle "playchess.com"]
[Source "ChessBase"]
[SourceQuality "1"]
[TimeControl "5400+30"]

1. a3 {[%emt 0:00:00]} d5 {[%emt 0:01:54]} 2. b4 {[%emt 0:00:00]} Bg4 {[%emt 0:01:35]} 3. Bb2 {[%emt 0:00:00]} Nd7 {[%emt 0:00:31]} 4. d3 {[%emt 0:01:51]} e5 {[%emt 0:01:27]} 5. Nd2 {[%emt 0:00:06]} a5 {[%emt 0:00:35]} 6. b5 {[%emt 0:00:48]} Ngf6 {[%emt 0:01:59]} 7. h3 {[%emt 0:04:57]} Bh5 {[%emt 0:01:14]} 8. g4 {[%emt 0:00:10]} Bg6 {[%emt 0:00:02]} 9. Bg2 {[%emt 0:00:05]} c6 {[%emt 0:05:04]} 10. c4 {[%emt 0:09:59]} Bc5 {[%emt 0:05:17]} 11. Ngf3 {[%emt 0:00:48]} cxb5 {[%emt 0:01:11]} 12. cxd5 {[%emt 0:00:34]} h5 {[%emt 0:01:58]} 13. Nh4 {[%emt 0:13:17]} Qb6 {[%emt 0:01:58]} 14. O-O {[%emt 0:02:11]} hxg4 {[%emt 0:00:09]} 15. Nxg6 {[%emt 0:00:06]} fxg6 {[%emt 0:00:11]} 16. hxg4 {[%emt 0:00:33]} Nxg4 {[%emt 0:00:27]} 17. Ne4 {[%emt 0:00:05]} Qd8 {[%emt 0:06:49]} 18. e3 {[%emt 0:00:41]} Qh4 {[%emt 0:01:02]} 19. Re1 {[%emt 0:00:07]} Bxe3 {[%emt 0:01:43]} 20. Rxe3 {[%emt 0:02:10]} Qh2+ {[%emt 0:00:24]} 21. Kf1 {[%emt 0:00:08]} Nxe3+ {[%emt 0:00:02]} 22. fxe3 {[%emt 0:00:07]} O-O+ {[%emt 0:00:04]} 23. Nf2 {[%emt 0:02:27]} Rxf2+ {[%emt 0:00:07]} 24. Kxf2 {[%emt 0:00:01]} Rf8+ {[%emt 0:00:02]} 25. Qf3 {[%emt 0:01:48]} Qh4+ {[%emt 0:00:13]} 26. Kf1 {[%emt 0:01:05]} Rxf3+ {[%emt 0:00:03]} 27. Bxf3 {[%emt 0:00:04]} Qg3 {[%emt 0:00:25]} 28. Be4 {[%emt 0:01:04]} Nf6 {[%emt 0:00:10]} 29. Rd1 {[%emt 0:01:06]} Nxe4 {[%emt 0:00:48]} 30. dxe4 {[%emt 0:00:01]} Qf3+ {[%emt 0:00:10]} 31. Ke1 {[%emt 0:00:27]} Qxe3+ {[%emt 0:00:02]} 32. Kf1 {[%emt 0:00:07]} Qf3+ {[%emt 0:00:04]} 33. Ke1 {[%emt 0:00:06]} Qxe4+ {[%emt 0:00:03]} 34. Kf1 {[%emt 0:00:50]} Qh1+ {[%emt 0:00:06]} 35. Ke2 {[%emt 0:00:04]} Qg2+ {[%emt 0:00:04]} 36. Ke1 {[%emt 0:01:50]} Qxb2 {[%emt 0:00:07]} 37. d6 {[%emt 0:00:03]} Qc3+ {[%emt 0:00:17]} 38. Ke2 {[%emt 0:00:36]} Qc2+ {[%emt 0:00:06]} 39. Rd2 {[%emt 0:00:38]} Qxd2+ {[%emt 0:00:02]} 40. Kxd2 {[%emt 0:00:06]} Kf7 {[%emt 0:00:03]} 41. d7 {[%emt 0:00:13]} Ke7 {[%emt 0:00:01]} 42. Ke1 {[%emt 0:01:54]} 0-1

[Event "Athens of East GM-Open 2019"]
[Site "Madurai"]
[Date "2019.08.17"]
[Round "9.9"]
[White "Muthaiah AL"]
[Black "Baivab Mishra"]
[Result "1-0"]
[ECO "A35"]
[WhiteElo "2384"]
[BlackElo "2215"]
[Annotator "NA"]
[PlyCount "91"]
[EventDate "2019.08.11"]
[EventType "swiss"]
[EventCountry "IND"]
[SourceTitle "playchess.com"]
[Source "ChessBase"]
[SourceQuality "1"]
[TimeControl "5400+30"]

1. c4 {[%emt 0:00:00]} c5 {[%emt 0:02:53]} 2. Nc3 {[%emt 0:00:08]} g6 {[%emt 0:00:11]} 3. Nf3 {[%emt 0:07:33]} Bg7 {[%emt 0:00:13]} 4. d4 {[%emt 0:00:15]} cxd4 {[%emt 0:00:26]} 5. Nxd4 {[%emt 0:00:15]} Nc6 {[%emt 0:00:04]} 6. Nc2 {[%emt 0:00:27]} d6 {[%emt 0:06:05]} 7. g3 {[%emt 0:01:43]} h5 {[%emt 0:05:39] A35: Symmetrical English: 2 Nc3 Nc6 3 Nf3} (7... Be6 8. Nd5 Rc8 9. Bg2 h5 10. h3 Na5 11. Nce3 Qd7 12. Qd3 Nc6 13. Rb1 Nf6 14. Nf4 O-O 15. Nxe6 Qxe6 {½-½ (79) Lubczynski,R (2432)-Solak,D (2611) Rhodes 2013}) 8. h4 {[%emt 0:03:26]} Nh6 {[%emt 0:00:07]} 9. Bg2 {[%emt 0:00:41]} Nf5 $146 {[%emt 0:00:31]} ({Predecessor:} 9... O-O 10. O-O Ne5 11. Ne3 Nhg4 12. Ncd5 Rb8 13. Rb1 b5 14. cxb5 Rxb5 {½-½ (74) Zhidkov,V (2314)-Balashov,Y (2423) Minsk 2018}) 10. O-O {[%emt 0:03:53]} O-O {[%emt 0:05:11]} 11. e4 {[%emt 0:11:06]} Nfd4 {[%emt 0:00:07]} 12. Be3 {[%emt 0:01:22]} Bg4 {[%emt 0:07:25]} 13. f3 {[%emt 0:02:23]} Nxc2 {[%emt 0:00:37]} 14. Qxc2 {[%emt 0:00:13]} Be6 {[%emt 0:00:06]} 15. b3 {[%emt 0:04:19]} a6 {[%emt 0:08:36]} 16. f4 {[%emt 0:18:53]} Bg4 {[%emt 0:04:46]} 17. Rac1 {[%emt 0:00:31]} Rc8 {[%emt 0:04:53]} 18. Qd2 {[%emt 0:02:07]} Qa5 {[%emt 0:00:26]} 19. Rf2 {[%emt 0:00:55]} Qa3 {[%emt 0:18:46]} 20. Nd5 {[%emt 0:02:00]} e6 {[%emt 0:00:50]} 21. Nb6 {[%emt 0:02:39]} Rcd8 {[%emt 0:00:17]} 22. Rb1 {[%emt 0:18:47]} Nb4 {[%emt 0:03:45]} (22... Qb4 $11) 23. Bd4 {[%emt 0:10:44]} Bxd4 {[%emt 0:02:24]} 24. Qxd4 {[%emt 0:00:01]} Nc6 {[%emt 0:00:35]} 25. Qe3 {[%emt 0:02:25]} Rfe8 {[%emt 0:02:52]} 26. Rd2 $11 {[%emt 0:02:06]} Qc5 {[%emt 0:13:30]} 27. Qxc5 {[%emt 0:02:26]} dxc5 {[%emt 0:00:01]} 28. Rbb2 {[%emt 0:00:01]} e5 {[%emt 0:06:07]} 29. Na4 {[%emt 0:00:42]} b5 {[%emt 0:03:28]} 30. cxb5 {[%emt 0:00:11]} axb5 {[%emt 0:00:04]} 31. Nxc5 {[%emt 0:00:09]} f6 {[%emt 0:01:25]} 32. Kf2 {[%emt 0:00:24]} Nd4 {[%emt 0:00:06]} 33. Nd3 {[%emt 0:01:43]} Kf7 {[%emt 0:00:36]} 34. Ke3 {[%emt 0:01:20]} exf4+ {[%emt 0:00:37]} 35. Nxf4 {[%emt 0:00:28]} Nf5+ {[%emt 0:01:20]} 36. Kf2 {[%emt 0:00:01]} Nd6 {[%emt 0:01:17]} 37. Rd5 {[%emt 0:00:30]} b4 {[%emt 0:01:41]} 38. Rbd2 {[%emt 0:00:28]} Nb7 {[%emt 0:00:12]} 39. Nd3 {[%emt 0:00:41]} Be6 {[%emt 0:00:45]} 40. Rxd8 {[%emt 0:00:16]} Rxd8 {[%emt 0:00:08]} 41. Ke3 {[%emt 0:00:09]} Rb8 {[%emt 0:00:56]} 42. Nxb4 {[%emt 0:00:16]} Nc5 {[%emt 0:00:04]} 43. Nc6 {[%emt 0:00:41]} Rb6 {[%emt 0:00:15]} 44. Rd6 {[%emt 0:01:16]} Ra6 {[%emt 0:01:02]} 45. Nd8+ {[%emt 0:01:09]} Ke7 {[%emt 0:00:05]} 46. Rxa6 {[%emt 0:00:08]} 1-0

[Event "Athens of East GM-Open 2019"]
[Site "Madurai"]
[Date "2019.08.17"]
[Round "9.10"]
[White "Rajesh, V A V"]
[Black "Ram, S. Krishnan"]
[Result "1-0"]
[ECO "D25"]
[WhiteElo "2368"]
[BlackElo "2192"]
[Annotator "ChessBase"]
[PlyCount "77"]
[EventDate "2019.08.11"]
[EventType "swiss"]
[EventCountry "IND"]
[SourceTitle "playchess.com"]
[Source "ChessBase"]
[SourceQuality "1"]
[TimeControl "5400+30"]

1. d4 {[%emt 0:00:00]} d5 {[%emt 0:00:00]} 2. c4 {[%emt 0:00:00]} dxc4 {[%emt 0:00:00]} 3. Nf3 {[%emt 0:00:00]} Nf6 {[%emt 0:00:00]} 4. e3 {[%emt 0:00:00]} b5 {[%emt 0:00:00]} 5. a4 {[%emt 0:02:40]} b4 {[%emt 0:00:04]} 6. Bxc4 {[%emt 0:00:24]} e6 {[%emt 0:00:02]} 7. O-O {[%emt 0:08:57]} Be7 {[%emt 0:00:21]} 8. Ne5 {[%emt 0:03:50]} Bb7 {[%emt 0:03:34]} 9. a5 {[%emt 0:00:49]} O-O {[%emt 0:00:16]} 10. Nd2 {[%emt 0:12:13]} c5 {[%emt 0:02:59]} 11. Nb3 {[%emt 0:08:21]} Qc7 {[%emt 0:04:40]} 12. Qe2 {[%emt 0:07:23]} Bd6 {[%emt 0:03:30]} 13. f4 {[%emt 0:02:39]} Ne4 {[%emt 0:17:16]} 14. Bd3 {[%emt 0:04:37]} f6 {[%emt 0:04:50]} 15. Nc4 {[%emt 0:05:10]} Be7 {[%emt 0:03:58]} 16. Qc2 {[%emt 0:03:58]} f5 {[%emt 0:00:16]} 17. Ncd2 {[%emt 0:02:02]} Nxd2 {[%emt 0:56:44]} 18. Bxd2 {[%emt 0:00:08]} Qc6 {[%emt 0:00:00]} 19. Rf2 {[%emt 0:02:41]} cxd4 {[%emt 0:00:00]} 20. Nxd4 {[%emt 0:00:34]} Qxc2 {[%emt 0:00:00]} 21. Nxc2 {[%emt 0:10:50]} b3 {[%emt 0:00:00]} 22. Nd4 {[%emt 0:00:06]} Bd5 {[%emt 0:00:00]} 23. Rc1 {[%emt 0:06:10]} Nd7 {[%emt 0:00:00]} 24. Bc4 {[%emt 0:00:36]} Bxc4 {[%emt 0:00:00]} 25. Rxc4 {[%emt 0:00:04]} Rfc8 {[%emt 0:00:00]} 26. Rxc8+ {[%emt 0:03:08]} Rxc8 {[%emt 0:00:00]} 27. Nxb3 {[%emt 0:00:36]} Rb8 {[%emt 0:00:00]} 28. Nd4 {[%emt 0:01:15]} Rxb2 {[%emt 0:00:00]} 29. Bc3 {[%emt 0:02:17]} Rb1+ {[%emt 0:00:00]} 30. Rf1 {[%emt 0:00:28]} Rxf1+ {[%emt 0:00:00]} 31. Kxf1 {[%emt 0:00:11]} Kf7 {[%emt 0:00:00]} 32. Nc6 {[%emt 0:00:39]} Bc5 {[%emt 0:00:00]} 33. Ke2 {[%emt 0:00:23]} a6 {[%emt 0:00:00]} 34. Kd3 {[%emt 0:00:40]} Bd6 {[%emt 0:00:00]} 35. Kc4 {[%emt 0:03:47]} Nb8 {[%emt 0:00:00]} 36. Nd8+ {[%emt 0:00:21]} Ke7 {[%emt 0:00:00]} 37. Nb7 {[%emt 0:00:04]} Bc7 {[%emt 0:00:00]} 38. Bxg7 {[%emt 0:00:15]} Kd7 {[%emt 0:00:00]} 39. Nc5+ {[%emt 0:00:24]} 1-0

[Event "Athens of East GM-Open 2019"]
[Site "Madurai"]
[Date "2019.08.17"]
[Round "9.11"]
[White "Patil, Pratik"]
[Black "Raja Rithvik R"]
[Result "0-1"]
[ECO "C54"]
[WhiteElo "2216"]
[BlackElo "2357"]
[Annotator "ChessBase"]
[PlyCount "70"]
[EventDate "2019.08.11"]
[EventType "swiss"]
[EventCountry "IND"]
[SourceTitle "playchess.com"]
[Source "ChessBase"]
[SourceQuality "1"]
[TimeControl "5400+30"]

1. e4 {[%emt 0:00:00]} e5 {[%emt 0:00:00]} 2. Nf3 {[%emt 0:00:13]} Nc6 {[%emt 0:00:01]} 3. Bc4 {[%emt 0:00:19]} Bc5 {[%emt 0:00:07]} 4. c3 {[%emt 0:00:13]} Nf6 {[%emt 0:00:06]} 5. d3 {[%emt 0:00:12]} O-O {[%emt 0:00:10]} 6. Bb3 {[%emt 0:00:14]} d5 {[%emt 0:00:14]} 7. exd5 {[%emt 0:03:56]} Nxd5 {[%emt 0:00:05]} 8. O-O {[%emt 0:00:20]} Bg4 {[%emt 0:01:49]} 9. h3 {[%emt 0:01:01]} Bh5 {[%emt 0:00:09]} 10. Re1 {[%emt 0:00:56]} f6 {[%emt 0:13:30]} 11. Nbd2 {[%emt 0:09:49]} Kh8 {[%emt 0:01:17]} 12. Ne4 {[%emt 0:03:44]} Bb6 {[%emt 0:01:01]} 13. Ng3 {[%emt 0:11:31]} Bf7 {[%emt 0:00:40]} 14. Nh4 {[%emt 0:06:15]} Qd7 {[%emt 0:08:24]} 15. Qf3 {[%emt 0:09:01]} Rad8 {[%emt 0:09:06]} 16. Ngf5 {[%emt 0:03:58]} g5 {[%emt 0:16:17]} 17. c4 {[%emt 0:01:19]} Nf4 {[%emt 0:05:43]} 18. Bxf4 {[%emt 0:00:12]} exf4 {[%emt 0:00:04]} 19. Ba4 {[%emt 0:00:17]} gxh4 {[%emt 0:05:58]} 20. Qxf4 {[%emt 0:00:29]} Bg6 {[%emt 0:02:00]} 21. Nxh4 {[%emt 0:03:55]} Qg7 {[%emt 0:02:00]} 22. Bxc6 {[%emt 0:04:21]} bxc6 {[%emt 0:00:07]} 23. Nf5 {[%emt 0:00:03]} Bxf5 {[%emt 0:07:15]} 24. Qxf5 {[%emt 0:00:02]} Qg6 {[%emt 0:00:22]} 25. Qf3 {[%emt 0:00:34]} Qxd3 {[%emt 0:04:29]} 26. Qxc6 {[%emt 0:00:08]} Rd6 {[%emt 0:00:28]} 27. Qb5 {[%emt 0:00:03]} Rg8 {[%emt 0:03:04]} 28. Re8 {[%emt 0:00:35]} Bxf2+ {[%emt 0:02:28]} 29. Kxf2 {[%emt 0:01:14]} Qg3+ {[%emt 0:00:03]} 30. Ke2 {[%emt 0:00:27]} Qxg2+ {[%emt 0:00:06]} 31. Ke1 {[%emt 0:03:32]} Qg1+ {[%emt 0:00:05]} 32. Ke2 {[%emt 0:00:05]} Qh2+ {[%emt 0:00:03]} 33. Kf1 {[%emt 0:01:34]} Qxh3+ {[%emt 0:00:07]} 34. Ke2 {[%emt 0:00:18]} Re6+ {[%emt 0:00:25]} 35. Rxe6 {[%emt 0:00:03]} Rg2+ {[%emt 0:00:04]} 0-1

[Event "Athens of East GM-Open 2019"]
[Site "Madurai"]
[Date "2019.08.17"]
[Round "9.12"]
[White "Nitin, S.."]
[Black "Balkishan, A.."]
[Result "1-0"]
[ECO "B80"]
[WhiteElo "2385"]
[BlackElo "2177"]
[Annotator "ChessBase"]
[PlyCount "63"]
[EventDate "2019.08.11"]
[EventType "swiss"]
[EventCountry "IND"]
[SourceTitle "playchess.com"]
[Source "ChessBase"]
[SourceQuality "1"]
[TimeControl "5400+30"]

1. e4 {[%emt 0:00:16]} c5 {[%emt 0:07:25]} 2. Nf3 {[%emt 0:00:18]} e6 {[%emt 0:00:17]} 3. d4 {[%emt 0:00:09]} cxd4 {[%emt 0:00:02]} 4. Nxd4 {[%emt 0:00:10]} Nc6 {[%emt 0:00:05]} 5. Nc3 {[%emt 0:02:33]} Qc7 {[%emt 0:00:03]} 6. g3 {[%emt 0:01:09]} a6 {[%emt 0:00:55]} 7. Bg2 {[%emt 0:00:16]} Nf6 {[%emt 0:01:04]} 8. O-O {[%emt 0:00:46]} d6 {[%emt 0:04:39]} 9. Nxc6 {[%emt 0:01:02]} bxc6 {[%emt 0:00:30]} 10. Be3 {[%emt 0:00:18]} Rb8 {[%emt 0:03:55]} 11. Na4 {[%emt 0:02:16]} e5 {[%emt 0:08:52]} 12. c4 {[%emt 0:01:11]} Be6 {[%emt 0:05:48]} 13. b3 {[%emt 0:07:04]} Be7 {[%emt 0:02:58]} 14. Qe2 {[%emt 0:01:24]} Nd7 {[%emt 0:03:13]} 15. Rac1 {[%emt 0:01:14]} c5 {[%emt 0:16:09]} 16. f4 {[%emt 0:00:53]} f6 {[%emt 0:00:59]} 17. Nc3 {[%emt 0:00:17]} O-O {[%emt 0:01:26]} 18. f5 {[%emt 0:00:30]} Bf7 {[%emt 0:00:38]} 19. h4 {[%emt 0:00:42]} Rb7 {[%emt 0:01:14]} 20. g4 {[%emt 0:00:34]} Nb8 {[%emt 0:07:15]} 21. g5 {[%emt 0:00:48]} Nc6 {[%emt 0:04:12]} 22. Bh3 {[%emt 0:01:47]} Kh8 {[%emt 0:04:58]} 23. Qg2 {[%emt 0:01:38]} g6 {[%emt 0:00:56]} 24. fxg6 {[%emt 0:05:33]} Bxg6 {[%emt 0:00:48]} 25. Nd5 {[%emt 0:00:09]} Qd8 {[%emt 0:00:55]} 26. gxf6 {[%emt 0:02:05]} Bxf6 {[%emt 0:03:43]} 27. Nxf6 {[%emt 0:01:25]} Rxf6 {[%emt 0:00:55]} 28. Bg5 {[%emt 0:00:07]} Rbf7 {[%emt 0:03:27]} 29. Rxf6 {[%emt 0:01:40]} Rxf6 {[%emt 0:00:21]} 30. Rf1 {[%emt 0:01:21]} Rxf1+ {[%emt 0:02:16]} 31. Qxf1 {[%emt 0:00:13]} Qc7 {[%emt 0:02:18]} 32. Qf8# {[%emt 0:00:03]} 1-0

[Event "Athens of East GM-Open 2019"]
[Site "Madurai"]
[Date "2019.08.17"]
[Round "9.13"]
[White "Lokesh, N.."]
[Black "Kunal, M.."]
[Result "1-0"]
[ECO "B11"]
[WhiteElo "2202"]
[BlackElo "2306"]
[Annotator "NA"]
[PlyCount "143"]
[EventDate "2019.08.11"]
[EventType "swiss"]
[EventCountry "IND"]
[SourceTitle "playchess.com"]
[Source "ChessBase"]
[SourceQuality "1"]
[TimeControl "5400+30"]

1. e4 {[%emt 0:02:54]} c6 {[%emt 0:02:08]} 2. Nf3 {[%emt 0:03:50]} d5 {[%emt 0:00:07]} 3. Nc3 {[%emt 0:00:05]} Bg4 {[%emt 0:03:08]} 4. h3 {[%emt 0:00:07]} Bxf3 {[%emt 0:00:04]} 5. Qxf3 {[%emt 0:00:03]} e6 {[%emt 0:00:09]} 6. d4 {[%emt 0:00:08]} Nf6 {[%emt 0:01:29]} 7. Bg5 {[%emt 0:08:16]} dxe4 {[%emt 0:04:13] B11: Caro-Kann: Two Knights Variation} (7... Be7 8. e5 Nfd7 9. Bxe7 Qxe7 10. O-O-O O-O 11. Qe3 c5 12. f4 Nc6 13. Ne2 Rac8 14. Kb1 a6 15. g4 cxd4 16. Nxd4 Nxd4 17. Qxd4 {0-1 (56) Inarkiev,E (2660)-Riazantsev,A (2646) St Petersburg 2015}) 8. Nxe4 {[%emt 0:00:42]} Be7 {[%emt 0:00:14]} 9. O-O-O {[%emt 0:04:59]} Nxe4 {[%emt 0:01:39]} 10. Bxe7 {[%emt 0:00:09]} Qxe7 {[%emt 0:00:41]} 11. Qxe4 {[%emt 0:00:06]} Nd7 {[%emt 0:00:03]} 12. g3 $146 {[%emt 0:16:39]} ({Predecessor:} 12. Be2 O-O-O 13. Bf3 Nf6 14. Qe5 Qd6 15. Rhe1 Qxe5 16. Rxe5 {0-1 (32) Przybylski,W (2378)-Yevseev,D (2515) Jurmala 2015}) 12... Nf6 {[%emt 0:01:08]} 13. Qe5 {[%emt 0:00:55]} O-O {[%emt 0:00:18]} 14. Bg2 {[%emt 0:00:08]} Rac8 {[%emt 0:00:31]} 15. Rhe1 {[%emt 0:00:37]} h6 {[%emt 0:04:19]} 16. Kb1 {[%emt 0:00:18]} Qb4 {[%emt 0:02:00]} 17. Re3 {[%emt 0:11:50]} Rfd8 {[%emt 0:01:29]} 18. Rb3 {[%emt 0:09:18]} Qe7 {[%emt 0:00:22]} 19. c4 {[%emt 0:04:41]} b6 {[%emt 0:03:37]} 20. f4 {[%emt 0:17:16]} Qf8 {[%emt 0:13:01]} 21. g4 {[%emt 0:02:20]} Nd7 {[%emt 0:04:45]} 22. Qe2 {[%emt 0:03:04]} c5 {[%emt 0:04:43]} 23. d5 {[%emt 0:04:06]} exd5 {[%emt 0:00:52]} 24. Bxd5 {[%emt 0:00:07]} Re8 {[%emt 0:00:53]} 25. Qf3 {[%emt 0:03:40]} Nf6 {[%emt 0:00:43]} 26. Rbd3 {[%emt 0:01:21]} Qe7 {[%emt 0:03:11]} 27. Bc6 {[%emt 0:04:32]} Red8 {[%emt 0:00:06]} 28. g5 {[%emt 0:00:42]} hxg5 {[%emt 0:01:24]} 29. fxg5 {[%emt 0:00:05]} Nh7 {[%emt 0:00:06]} 30. h4 {[%emt 0:00:05]} Rxd3 {[%emt 0:01:47]} 31. Rxd3 {[%emt 0:00:07]} Qe1+ $18 {[%emt 0:01:57]} (31... Rxc6 $16 {was worth a try.} 32. Qxc6 Qe1+ 33. Kc2 Qe2+ 34. Kc3 Qe1+ 35. Kb3 Qb4+ 36. Kc2 Qxc4+ 37. Rc3 Qg4) 32. Rd1 {[%emt 0:00:19]} Qxh4 {[%emt 0:00:07]} 33. Rh1 {[%emt 0:00:14]} Qxg5 {[%emt 0:12:39]} 34. Be4 {[%emt 0:00:52]} Kf8 {[%emt 0:08:01]} 35. Rxh7 {[%emt 0:00:59]} Re8 {[%emt 0:00:19]} 36. Rh1 {[%emt 0:01:09]} g6 {[%emt 0:00:11]} 37. Bd5 {[%emt 0:00:35]} Re7 {[%emt 0:00:48]} 38. Qh3 {[%emt 0:00:22]} Qe5 {[%emt 0:02:55]} 39. a3 {[%emt 0:01:01]} Qg7 {[%emt 0:00:13]} 40. Qc8+ {[%emt 0:00:41]} Re8 {[%emt 0:00:05]} 41. Qc6 {[%emt 0:00:20]} g5 {[%emt 0:05:18]} 42. Rf1 {[%emt 0:00:31]} Re2 {[%emt 0:02:24]} 43. Qc8+ {[%emt 0:00:35]} Re8 {[%emt 0:00:05]} 44. Qd7 {[%emt 0:00:15]} Qg6+ {[%emt 0:00:26]} 45. Ka2 {[%emt 0:00:27]} Re7 {[%emt 0:00:04]} 46. Qd8+ {[%emt 0:00:29]} Re8 {[%emt 0:00:15]} 47. Bxf7 {[%emt 0:00:35]} Rxd8 {[%emt 0:00:04]} 48. Bxg6+ {[%emt 0:00:07]} Kg7 {[%emt 0:00:04]} 49. Be4 {[%emt 0:00:18]} Rd4 {[%emt 0:00:24]} 50. Bd5 {[%emt 0:00:21]} b5 {[%emt 0:01:10]} 51. Rf7+ {[%emt 0:00:55]} Kg6 {[%emt 0:00:04]} 52. Rc7 {[%emt 0:00:06]} bxc4 {[%emt 0:01:24]} 53. Rxc5 {[%emt 0:00:07]} g4 {[%emt 0:00:01]} 54. Bxc4 {[%emt 0:00:38]} g3 {[%emt 0:00:04]} 55. Bd5 {[%emt 0:00:30]} Kg5 {[%emt 0:00:07]} 56. b4 {[%emt 0:01:45]} Kf4 {[%emt 0:00:07]} 57. Kb3 {[%emt 0:00:29]} Ke5 {[%emt 0:00:24]} 58. Bg2+ {[%emt 0:00:19]} Kd6 {[%emt 0:00:18]} 59. Rc3 {[%emt 0:00:09]} a5 {[%emt 0:00:03]} 60. Rxg3 {[%emt 0:00:22]} axb4 {[%emt 0:00:04]} 61. axb4 {[%emt 0:00:23]} Kc7 {[%emt 0:00:17]} 62. Rg7+ {[%emt 0:00:15]} Kb6 {[%emt 0:00:05]} 63. Ka4 {[%emt 0:00:17]} Rf4 {[%emt 0:00:17]} 64. Rg6+ {[%emt 0:00:18]} Ka7 {[%emt 0:00:04]} 65. Bd5 {[%emt 0:00:35]} Rf5 {[%emt 0:00:08]} 66. Rg7+ {[%emt 0:00:14]} Kb8 {[%emt 0:00:03]} 67. Rb7+ {[%emt 0:00:34]} Ka8 {[%emt 0:00:03]} 68. Rd7+ {[%emt 0:00:11]} Kb8 {[%emt 0:00:04]} 69. Kb5 {[%emt 0:00:38]} Kc8 {[%emt 0:00:13]} 70. Kc6 {[%emt 0:00:20]} Rf1 {[%emt 0:00:05]} 71. Rf7 {[%emt 0:00:26]} Rc1+ {[%emt 0:00:09]} 72. Kb6 {[%emt 0:00:05]} 1-0